Workbook

Sheet PAGE INITIAL

Sheet Mode

Sheet Contact

Sheet Remerc

Sheet Info supl

Sheet Lavage Acide
V1: Facteur correction: | W1: =100-W2 ->  | X1: 100
U2: Composition 1 | W2: =(L10-L11)*100/L10 -> 
U3: Formule | W3: =VLOOKUP(G14,Tableau38[#All],2,FALSE) ->  | AA3: Fn
U4: Masse molaire | W4: =IF(ISTEXT(G14),VLOOKUP(G14,Tableau38[#All],3,FALSE),"1") -> 1 | X4: g/mol | Z4: Composition 1 | AA4: =IF(ISTEXT(G14),IF(Q$12="Hydroxyde de sodium",VLOOKUP(G14,Tableau4[#All],4,FALSE),VLOOKUP(G14,Tableau4[#All],3,FALSE)),"1") -> 1
U5: Masse volumique | W5: =IF(ISTEXT(G14),IF(G10="Liquide",VLOOKUP(G14,Tableau38[#All],4,FALSE),VLOOKUP(G14,Tableau38[#All],5,FALSE)),"1") -> 1 | X5: g/cm³ | Z5: Composition 2 | AA5: =IF(ISTEXT(G17),IF(Q$12="Hydroxyde de sodium",VLOOKUP(G17,Tableau4[#All],4,FALSE),VLOOKUP(G17,Tableau4[#All],3,FALSE)),"1") -> 1
U6: Concentration (mol/L) | W6: =IF(G10="Solide",((G$11/G$12)*(G15/100)*((W$1)/100)/W4),((G$11/G$12)*W5*(G15/100)*((W$1)/100)/W4)) ->  | X6: mol/L | Z6: Composition 3 | AA6: =IF(ISTEXT(G20),IF(Q$12="Hydroxyde de sodium",VLOOKUP(G20,Tableau4[#All],4,FALSE),VLOOKUP(G20,Tableau4[#All],3,FALSE)),"1") -> 1
U7: N. moles (mols) | W7: =IF(G$10="Solide",(G$11*(G15/100)*(W$1/100)/W4),(G$11*W5*(G15/100)*(W$1/100)/W4)) ->  | X7: =IF(G$10="Solide",(G$11*(G15/100)*(X$1/100)/W4),(G$11*W5*(G15/100)*(X$1/100)/W4)) -> 0 | Z7: Composition 4 | AA7: =IF(ISTEXT(G23),IF(Q$12="Hydroxyde de sodium",VLOOKUP(G23,Tableau4[#All],4,FALSE),VLOOKUP(G23,Tableau4[#All],3,FALSE)),"1") -> 1
U8: Composition 2
U9: Formule | W9: =VLOOKUP(G17,Tableau38[#All],2,FALSE) ->  | Z9: Formule | AA9: =VLOOKUP(Q12,Tableau3[#All],2,FALSE) -> 
F10: Type de produit : | K10: Condutivité avant : | M10: mS/cm | P10: Type : | U10: Masse molaire | W10: =IF(ISTEXT(G17),VLOOKUP(G17,Tableau38[#All],3,FALSE),"1") -> 1 | X10: g/mol | Z10: Masse molaire | AA10: =VLOOKUP(Q12,Tableau3[#All],3,FALSE) ->  | AB10: g/mol
F11: Quantité de produit : | H11: =IF(G10="solide","g de produit", "ml de produit") -> ml de produit | K11: Conductivité après : | M11: mS/cm | U11: Masse volumique | W11: =IF(ISTEXT(G17),IF(G10="Liquide",VLOOKUP(G17,Tableau38[#All],4,FALSE),VLOOKUP(G17,Tableau38[#All],5,FALSE)),"1") -> 1 | X11: g/cm³ | Z11: Masse volumique | AA11: =IF(Q10="Liquide",VLOOKUP(Q12,Tableau3[#All],4,FALSE),VLOOKUP(Q12,Tableau3[#All],5,FALSE)) ->  | AB11: g/cm³
F12: Volume de filtrat : | H12: L | O12: Produit : | U12: Concentration (mol/L) | W12: =IF(G$10="Solide",((G$11/G$12)*(G18/100)*((W$1)/100)/W10),((G$11/G$12)*W11*(G18/100)*((W$1)/100)/W10)) ->  | X12: mol/L
O13: Porcentage : | U13: N. moles (mols) | W13: =IF(G$10="Solide",(G$11*(G18/100)*(W$1/100)/W10),(G$11*W11*(G18/100)*(W$1/100)/W10)) ->  | X13: =IF(G$10="Solide",(G$11*(G18/100)*(X$1/100)/W10),(G$11*W11*(G18/100)*(X$1/100)/W10)) -> 0
E14: Composition 1 | U14: Composition 3
E15: Pourcentage: | U15: Formule | W15: =VLOOKUP(G20,Tableau38[#All],2,FALSE) -> 
O16: Quantité de produit necessaire : | U16: Masse molaire | W16: =IF(ISTEXT(G20),VLOOKUP(G20,Tableau38[#All],3,FALSE),"1") -> 1 | X16: g/mol
E17: Composition 2 | U17: Masse volumique | W17: =IF(ISTEXT(G20),IF(G10="Liquide",VLOOKUP(G20,Tableau38[#All],4,FALSE),VLOOKUP(G20,Tableau38[#All],5,FALSE)),"1") -> 1 | X17: g/cm³
E18: Pourcentage: | O18: Minimale | U18: Concentration (mol/L) | W18: =IF(G$10="Solide",((G$11/G$12)*(G21/100)*((W$1)/100)/W16),((G$11/G$12)*W17*(G21/100)*((W$1)/100)/W16)) ->  | X18: mol/L
O19: =IF(Q10="solide",(IF(Q12="Bicarbonate de sodium",(((W7/AA4)+(W13/AA5)+(W19/AA6)+(W25/AA7))*AA10*(100/Q13)*10),(((W7/AA4)+(W13/AA5)+(W19/AA6)+(W25/AA7))*AA10*(100/Q13)))),(((W7/AA4)+(W13/AA5)+(W19/AA6)+(W25/AA7))*(AA10/AA11)*(100/Q13))) ->  | P19: =IF(Q10="solide","g de", "ml de") -> ml de | Q19: =Q12 -> 0 | U19: N. moles (mols) | W19: =IF(G$10="Solide",(G$11*(G21/100)*(W$1/100)/W16),(G$11*W17*(G21/100)*(W$1/100)/W16)) ->  | X19: =IF(G$10="Solide",(G$11*(G21/100)*(X$1/100)/W16),(G$11*W17*(G21/100)*(X$1/100)/W16)) -> 0
E20: Composition 3 | O20: Maximale | U20: Composition 4
E21: Pourcentage: | O21: =IF(Q10="solide",(IF(Q12="Bicarbonate de sodium",(((X7/AA4)+(X13/AA5)+(X19/AA6)+(X25/AA7))*AA10*(100/Q13)*10),(((X7/AA4)+(X13/AA5)+(X19/AA6)+(X25/AA7))*AA10*(100/Q13)))),(((X7/AA4)+(X13/AA5)+(X19/AA6)+(X25/AA7))*(AA10/AA11)*(100/Q13))) ->  | P21: =IF(Q10="solide","g de", "ml de") -> ml de | Q21: =Q12 -> 0 | U21: Formule | W21: =VLOOKUP(G23,Tableau38[#All],2,FALSE) -> 
U22: Masse molaire | W22: =IF(ISTEXT(G23),VLOOKUP(G23,Tableau38[#All],3,FALSE),"1") -> 1 | X22: g/mol
E23: Composition 4 | U23: Masse volumique | W23: =IF(ISTEXT(G23),IF(G10="Liquide",VLOOKUP(G23,Tableau38[#All],4,FALSE),VLOOKUP(G23,Tableau38[#All],5,FALSE)),"1") -> 1 | X23: g/cm³
E24: Pourcentage: | U24: Concentration (mol/L) | W24: =IF(G$10="Solide",((G$11/G$12)*(G24/100)*((W$1)/100)/W22),((G$11/G$12)*W23*(G24/100)*((W$1)/100)/W22)) ->  | X24: mol/L
U25: N. moles (mols) | W25: =IF(G$10="Solide",(G$11*(G24/100)*(W$1/100)/W22),(G$11*W23*(G24/100)*(W$1/100)/W22)) ->  | X25: =IF(G$10="Solide",(G$11*(G24/100)*(X$1/100)/W22),(G$11*W23*(G24/100)*(X$1/100)/W22)) -> 0

Sheet Lavage Basique
V1: Facteur correction: | W1: =100-W2 ->  | X1: 100
U2: Composition 1 | W2: =(L10-L11)*100/L10 -> 
U3: Formule | W3: =VLOOKUP(G14,Tableau1[#All],2,FALSE) ->  | AA3: Fn
U4: Masse molaire | W4: =IF(ISTEXT(G14),VLOOKUP(G14,Tableau1[#All],3,FALSE),"1") -> 1 | X4: g/mol | Z4: Composition 1 | AA4: =IF(ISTEXT(G14),IF(Q$12="Acide citrique",VLOOKUP(G14,Tableau4[#All],2,FALSE),VLOOKUP(G14,Tableau4[#All],3,FALSE)),"1") -> 1
U5: Masse volumique | W5: =IF(ISTEXT(G14),IF(G10="Liquide",VLOOKUP(G14,Tableau1[#All],4,FALSE),VLOOKUP(G14,Tableau1[#All],5,FALSE)),"1") -> 1 | X5: g/cm³ | Z5: Composition 2 | AA5: =IF(ISTEXT(G17),IF(Q$12="Acide citrique",VLOOKUP(G17,Tableau4[#All],2,FALSE),VLOOKUP(G17,Tableau4[#All],3,FALSE)),"1") -> 1
U6: Concentration (mol/L) | W6: =IF(G10="Solide",((G$11/(G$12))*(G15/100)*((W$1)/100)/W4),((G$11/G$12)*W5*(G15/100)*((W$1)/100)/W4)) ->  | X6: mol/L | Z6: Composition 3 | AA6: =IF(ISTEXT(G20),IF(Q$12="Acide citrique",VLOOKUP(G20,Tableau4[#All],2,FALSE),VLOOKUP(G20,Tableau4[#All],3,FALSE)),"1") -> 1
U7: N. moles (mols) | W7: =IF(G$10="Solide",(G$11*(G15/100)*(W$1/100)/W4),(G$11*W5*(G15/100)*(W$1/100)/W4)) ->  | X7: =IF(G$10="Solide",(G$11*(G15/100)*(X$1/100)/W4),(G$11*W5*(G15/100)*(X$1/100)/W4)) -> 0 | Z7: Composition 4 | AA7: =IF(ISTEXT(G23),IF(Q$12="Acide citrique",VLOOKUP(G23,Tableau4[#All],2,FALSE),VLOOKUP(G23,Tableau4[#All],3,FALSE)),"1") -> 1
U8: Composition 2
U9: Formule | W9: =VLOOKUP(G17,Tableau1[#All],2,FALSE) ->  | Z9: Formule | AA9: =VLOOKUP(Q12,Tableau3[#All],2,FALSE) -> 
F10: Type de savon : | K10: Condutivité avant : | M10: mS/cm | P10: Type : | U10: Masse molaire | W10: =IF(ISTEXT(G17),VLOOKUP(G17,Tableau1[#All],3,FALSE),"1") -> 1 | X10: g/mol | Z10: Masse molaire | AA10: =VLOOKUP(Q12,Tableau3[#All],3,FALSE) ->  | AB10: g/mol
F11: Quantité de savon : | H11: =IF(G10="solide","g de produit", "ml de produit") -> ml de produit | K11: Conductivité après : | M11: mS/cm | U11: Masse volumique | W11: =IF(ISTEXT(G17),IF(G10="Liquide",VLOOKUP(G17,Tableau1[#All],4,FALSE),VLOOKUP(G17,Tableau1[#All],5,FALSE)),"1") -> 1 | X11: g/cm³ | Z11: Masse volumique | AA11: =IF(Q10="Liquide",VLOOKUP(Q12,Tableau3[#All],4,FALSE),VLOOKUP(Q12,Tableau3[#All],5,FALSE)) ->  | AB11: g/cm³
F12: Volume de filtrat : | H12: L | O12: Produit : | U12: Concentration (mol/L) | W12: =IF(G$10="Solide",((G$11/G$12)*(G18/100)*((W$1)/100)/W10),((G$11/G$12)*W11*(G18/100)*((W$1)/100)/W10)) ->  | X12: mol/L
O13: Porcentage : | U13: N. moles (mols) | W13: =IF(G$10="Solide",(G$11*(G18/100)*(W$1/100)/W10),(G$11*W11*(G18/100)*(W$1/100)/W10)) ->  | X13: =IF(G$10="Solide",(G$11*(G18/100)*(X$1/100)/W10),(G$11*W11*(G18/100)*(X$1/100)/W10)) -> 0
E14: Composition 1 | U14: Composition 3
E15: Pourcentage: | U15: Formule | W15: =VLOOKUP(G20,Tableau1[#All],2,FALSE) -> 
O16: Quantité de produit necessaire : | U16: Masse molaire | W16: =IF(ISTEXT(G20),VLOOKUP(G20,Tableau1[#All],3,FALSE),"1") -> 1 | X16: g/mol
E17: Composition 2 | U17: Masse volumique | W17: =IF(ISTEXT(G20),IF(G10="Liquide",VLOOKUP(G20,Tableau1[#All],4,FALSE),VLOOKUP(G20,Tableau1[#All],5,FALSE)),"1") -> 1 | X17: g/cm³
E18: Pourcentage: | O18: Minimale | U18: Concentration (mol/L) | W18: =IF(G$10="Solide",((G$11/G$12)*(G21/100)*((W$1)/100)/W16),((G$11/G$12)*W17*(G21/100)*((W$1)/100)/W16)) ->  | X18: mol/L
O19: =IF(Q10="solide",(IF(Q12="Bicarbonate de sodium",(((W7/AA4)+(W13/AA5)+(W19/AA6)+(W25/AA7))*AA10*(100/Q13)*10),(((W7/AA4)+(W13/AA5)+(W19/AA6)+(W25/AA7))*AA10*(100/Q13)))),(((W7/AA4)+(W13/AA5)+(W19/AA6)+(W25/AA7))*(AA10/AA11)*(100/Q13))) ->  | P19: =IF(Q10="solide","g de", "ml de") -> ml de | Q19: =Q12 -> 0 | U19: N. moles (mols) | W19: =IF(G$10="Solide",(G$11*(G21/100)*(W$1/100)/W16),(G$11*W17*(G21/100)*(W$1/100)/W16)) ->  | X19: =IF(G$10="Solide",(G$11*(G21/100)*(X$1/100)/W16),(G$11*W17*(G21/100)*(X$1/100)/W16)) -> 0
E20: Composition 3 | O20: Maximale | U20: Composition 4
E21: Pourcentage: | O21: =IF(Q10="solide",(IF(Q12="Bicarbonate de sodium",(((X7/AA4)+(X13/AA5)+(X19/AA6)+(X25/AA7))*AA10*(100/Q13)*10),(((X7/AA4)+(X13/AA5)+(X19/AA6)+(X25/AA7))*AA10*(100/Q13)))),(((X7/AA4)+(X13/AA5)+(X19/AA6)+(X25/AA7))*(AA10/AA11)*(100/Q13))) ->  | P21: =IF(Q10="solide","g de", "ml de") -> ml de | Q21: =Q12 -> 0 | U21: Formule | W21: =VLOOKUP(G23,Tableau1[#All],2,FALSE) -> 
U22: Masse molaire | W22: =IF(ISTEXT(G23),VLOOKUP(G23,Tableau1[#All],3,FALSE),"1") -> 1 | X22: g/mol
E23: Composition 4 | U23: Masse volumique | W23: =IF(ISTEXT(G23),IF(G10="Liquide",VLOOKUP(G23,Tableau1[#All],4,FALSE),VLOOKUP(G23,Tableau1[#All],5,FALSE)),"1") -> 1 | X23: g/cm³
E24: Pourcentage: | U24: Concentration (mol/L) | W24: =IF(G$10="Solide",((G$11/G$12)*(G24/100)*((W$1)/100)/W22),((G$11/G$12)*W23*(G24/100)*((W$1)/100)/W22)) ->  | X24: mol/L
U25: N. moles (mols) | W25: =IF(G$10="Solide",(G$11*(G24/100)*(W$1/100)/W22),(G$11*W23*(G24/100)*(W$1/100)/W22)) ->  | X25: =IF(G$10="Solide",(G$11*(G24/100)*(X$1/100)/W22),(G$11*W23*(G24/100)*(X$1/100)/W22)) -> 0

Sheet Lavage complet
U6: Formule | V6: =VLOOKUP(K26,Tableau3[#All],2,FALSE) -> 
U7: Masse molaire | V7: =VLOOKUP(K26,Tableau3[#All],3,FALSE) ->  | W7: g/mol
U8: Masse volumique | V8: =IF(K25="Liquide",VLOOKUP(K26,Tableau3[#All],4,FALSE),VLOOKUP(K26,Tableau3[#All],5,FALSE)) ->  | W8: g/cm³
F10: Type de savon : | K10: Type de produit : | P10: Type de savon :
F11: Quantité de savon : | H11: =IF(G10="solide","g de produit", "ml de produit") -> ml de produit | K11: Quantité de produit : | M11: =IF(L10="solide","g de produit", "ml de produit") -> ml de produit | P11: Quantité de savon : | R11: =IF(Q10="solide","g de produit", "ml de produit") -> ml de produit
F12: Volume de filtrat : | H12: L | K12: Volume filtrat : | M12: L | P12: Volume filtrat : | R12: L
E14: Composition 1 | J14: Composition 1 | O14: Composition 1
E15: Pourcentage: | J15: Pourcentage: | O15: Pourcentage:
E17: Composition 2 | J17: Composition 2 | O17: Composition 2
E18: Pourcentage: | J18: Pourcentage: | O18: Pourcentage:
F20: Conductivité avant: | H20: mS/cm | K20: Conductivité avant: | M20: mS/cm | P20: Conductivité avant: | R20: mS/cm
F21: Conductivité après: | H21: mS/cm | K21: Conductivité après: | M21: mS/cm | P21: Conductivité après: | R21: mS/cm | U21: =IF(K25="solide",(IF(K26="Bicarbonate de sodium",(((G38+G44-L38-L44+Q38+Q44)/(_xlfn.SWITCH(K26,"Acide citrique",VLOOKUP(G14,Tableau6[#All],2,FALSE),"Hydroxyde de sodium",VLOOKUP(L14,Tableau6[#All],4,FALSE),"Bicarbonate de sodium",(IF(L23="Solution basique, il faut le neutraliser avec acide ou bicarbonate de sodium",VLOOKUP(G14,Tableau6[#All],3,FALSE),VLOOKUP(L14,Tableau6[#All],5,FALSE))))))*V7*(100/K27)*10),(((G38+G44-L38-L44+Q38+Q44)/(_xlfn.SWITCH(K26,"Acide citrique",VLOOKUP(G14,Tableau6[#All],2,FALSE),"Hydroxyde de sodium",VLOOKUP(L14,Tableau6[#All],4,FALSE),"Bicarbonate de sodium",(IF(L23="Solution basique, il faut le neutraliser avec acide ou bicarbonate de sodium",VLOOKUP(G14,Tableau6[#All],3,FALSE),VLOOKUP(L14,Tableau6[#All],5,FALSE))))))*V7*(100/K27)))),(((G38+G44-L38-L44+Q38+Q44)/(_xlfn.SWITCH(K26,"Acide citrique",VLOOKUP(G14,Tableau6[#All],2,FALSE),"Hydroxyde de sodium",VLOOKUP(L14,Tableau6[#All],4,FALSE),"Bicarbonate de sodium",(IF(L23="Solution basique, il faut le neutraliser avec acide ou bicarbonate de sodium",VLOOKUP(G14,Tableau6[#All],3,FALSE),VLOOKUP(L14,Tableau6[#All],5,FALSE))))))*(V7/V8)*(100/K27))) -> 
J23: Recommnandation: | L23: =IF(G38+G44-L38-L44+Q38+Q44=0, "neutre", IF(G38+G44-L38-L44+Q38+Q44>0,"Solution basique, il faut le neutraliser avec acide ou bicarbonate de sodium", "Solution acide, il faut le neutraliser avec basique ou bicarbonate de sodium")) -> neutre | U23: =IF(K25="solide",(IF(K26="Bicarbonate de sodium",(((G38+G44-L38-L44+Q38+Q44)/(IF(L23="Solution basique, il faut le neutraliser avec acide ou bicarbonate de sodium",VLOOKUP(G14,Tableau6[#All],3,FALSE),VLOOKUP(L14,Tableau6[#All],5,FALSE))))*V7*(100/K27)*10),(((G38+G44-L38-L44+Q38+Q44)/(_xlfn.SWITCH(K26,"Acide citrique",VLOOKUP(G14,Tableau6[#All],2,FALSE),"Hydroxyde de sodium",VLOOKUP(L14,Tableau6[#All],4,FALSE))))*V7*(100/K27)))),(((G38+G44-L38-L44+Q38+Q44)/(_xlfn.SWITCH(K26,"Acide citrique",VLOOKUP(G14,Tableau6[#All],2,FALSE),"Hydroxyde de sodium",VLOOKUP(L14,Tableau6[#All],4,FALSE))))*(V7/V8)*(100/K27))) -> 
N24: Quantité de produit necessaire | U24: =IF(ISNA(ABS(IF(K25="solide",(IF(K26="Bicarbonate de sodium",(((G38+G44-L38-L44+Q38+Q44)/(_xlfn.SWITCH(K26,"Acide citrique",VLOOKUP(G14,Tableau6[#All],2,FALSE),"Hydroxyde de sodium",VLOOKUP(L14,Tableau6[#All],4,FALSE),"Bicarbonate de sodium",(IF(L23="Solution basique, il faut le neutraliser avec acide ou bicarbonate de sodium",VLOOKUP(G14,Tableau6[#All],3,FALSE),VLOOKUP(L14,Tableau6[#All],5,FALSE))))))*V7*(100/K27)*10),(((G38+G44-L38-L44+Q38+Q44)/(_xlfn.SWITCH(K26,"Acide citrique",VLOOKUP(G14,Tableau6[#All],2,FALSE),"Hydroxyde de sodium",VLOOKUP(L14,Tableau6[#All],4,FALSE),"Bicarbonate de sodium",(IF(L23="Solution basique, il faut le neutraliser avec acide ou bicarbonate de sodium",VLOOKUP(G14,Tableau6[#All],3,FALSE),VLOOKUP(L14,Tableau6[#All],5,FALSE))))))*V7*(100/K27)))),(((G38+G44-L38-L44+Q38+Q44)/(_xlfn.SWITCH(K26,"Acide citrique",VLOOKUP(G14,Tableau6[#All],2,FALSE),"Hydroxyde de sodium",VLOOKUP(L14,Tableau6[#All],4,FALSE),"Bicarbonate de sodium",(IF(L23="Solution basique, il faut le neutraliser avec acide ou bicarbonate de sodium",VLOOKUP(G14,Tableau6[#All],3,FALSE),VLOOKUP(L14,Tableau6[#All],5,FALSE))))))*(V7/V8)*(100/K27))))),"compléter les espaces",ABS(IF(K25="solide",(IF(K26="Bicarbonate de sodium",(((G38+G44-L38-L44+Q38+Q44)/(_xlfn.SWITCH(K26,"Acide citrique",VLOOKUP(G14,Tableau6[#All],2,FALSE),"Hydroxyde de sodium",VLOOKUP(L14,Tableau6[#All],4,FALSE),"Bicarbonate de sodium",(IF(L23="Solution basique, il faut le neutraliser avec acide ou bicarbonate de sodium",VLOOKUP(G14,Tableau6[#All],3,FALSE),VLOOKUP(L14,Tableau6[#All],5,FALSE))))))*V7*(100/K27)*10),(((G38+G44-L38-L44+Q38+Q44)/(_xlfn.SWITCH(K26,"Acide citrique",VLOOKUP(G14,Tableau6[#All],2,FALSE),"Hydroxyde de sodium",VLOOKUP(L14,Tableau6[#All],4,FALSE),"Bicarbonate de sodium",(IF(L23="Solution basique, il faut le neutraliser avec acide ou bicarbonate de sodium",VLOOKUP(G14,Tableau6[#All],3,FALSE),VLOOKUP(L14,Tableau6[#All],5,FALSE))))))*V7*(100/K27)))),(((G38+G44-L38-L44+Q38+Q44)/(_xlfn.SWITCH(K26,"Acide citrique",VLOOKUP(G14,Tableau6[#All],2,FALSE),"Hydroxyde de sodium",VLOOKUP(L14,Tableau6[#All],4,FALSE),"Bicarbonate de sodium",(IF(L23="Solution basique, il faut le neutraliser avec acide ou bicarbonate de sodium",VLOOKUP(G14,Tableau6[#All],3,FALSE),VLOOKUP(L14,Tableau6[#All],5,FALSE))))))*(V7/V8)*(100/K27))))) -> compléter les espaces
J25: Type : | N25: Min. | O25: =ABS(IF(K25="solide",(IF(K26="Bicarbonate de sodium",(((G38+G44-L38-L44+Q38+Q44)/(_xlfn.SWITCH(K26,"Acide citrique",VLOOKUP(G14,Tableau6[#All],2,FALSE),"Hydroxyde de sodium",VLOOKUP(L14,Tableau6[#All],4,FALSE),"Bicarbonate de sodium",(IF(L23="Solution basique, il faut le neutraliser avec acide ou bicarbonate de sodium",VLOOKUP(G14,Tableau6[#All],3,FALSE),VLOOKUP(L14,Tableau6[#All],5,FALSE))))))*V7*(100/K27)*10),(((G38+G44-L38-L44+Q38+Q44)/(_xlfn.SWITCH(K26,"Acide citrique",VLOOKUP(G14,Tableau6[#All],2,FALSE),"Hydroxyde de sodium",VLOOKUP(L14,Tableau6[#All],4,FALSE),"Bicarbonate de sodium",(IF(L23="Solution basique, il faut le neutraliser avec acide ou bicarbonate de sodium",VLOOKUP(G14,Tableau6[#All],3,FALSE),VLOOKUP(L14,Tableau6[#All],5,FALSE))))))*V7*(100/K27)))),(((G38+G44-L38-L44+Q38+Q44)/(_xlfn.SWITCH(K26,"Acide citrique",VLOOKUP(G14,Tableau6[#All],2,FALSE),"Hydroxyde de sodium",VLOOKUP(L14,Tableau6[#All],4,FALSE),"Bicarbonate de sodium",(IF(L23="Solution basique, il faut le neutraliser avec acide ou bicarbonate de sodium",VLOOKUP(G14,Tableau6[#All],3,FALSE),VLOOKUP(L14,Tableau6[#All],5,FALSE))))))*(V7/V8)*(100/K27)))) ->  | P25: =IF(K25="solide","g de", "ml de") -> ml de | Q25: =K26 -> 0
J26: Produit : | N26: Max. | O26: =ABS(IF(K25="solide",(IF(K26="Bicarbonate de sodium",(((H38+H44-M38-M44+R38+R44)/(_xlfn.SWITCH(K26,"Acide citrique",VLOOKUP(G14,Tableau6[#All],2,FALSE),"Hydroxyde de sodium",VLOOKUP(L14,Tableau6[#All],4,FALSE),"Bicarbonate de sodium",(IF(L23="Solution basique, il faut le neutraliser avec acide ou bicarbonate de sodium",VLOOKUP(G14,Tableau6[#All],3,FALSE),VLOOKUP(L14,Tableau6[#All],5,FALSE))))))*V7*(100/K27)*10),(((H38+H44-M38-M44+R38+R44)/(_xlfn.SWITCH(K26,"Acide citrique",VLOOKUP(G14,Tableau6[#All],2,FALSE),"Hydroxyde de sodium",VLOOKUP(L14,Tableau6[#All],4,FALSE),"Bicarbonate de sodium",(IF(L23="Solution basique, il faut le neutraliser avec acide ou bicarbonate de sodium",VLOOKUP(G14,Tableau6[#All],3,FALSE),VLOOKUP(L14,Tableau6[#All],5,FALSE))))))*V7*(100/K27)))),(((H38+H44-M38-M44+R38+R44)/(_xlfn.SWITCH(K26,"Acide citrique",VLOOKUP(G14,Tableau6[#All],2,FALSE),"Hydroxyde de sodium",VLOOKUP(L14,Tableau6[#All],4,FALSE),"Bicarbonate de sodium",(IF(L23="Solution basique, il faut le neutraliser avec acide ou bicarbonate de sodium",VLOOKUP(G14,Tableau6[#All],3,FALSE),VLOOKUP(L14,Tableau6[#All],5,FALSE))))))*(V7/V8)*(100/K27)))) ->  | P26: =IF(K25="solide","g de", "ml de") -> ml de | Q26: =K26 -> 0
J27: Pourcentage:
E31: Lavage au Savon Basique | J31: Lavage Acide | O31: Lavage au Savon Basique
F32: Facteur correction: | G32: =100-H32 ->  | H32: =(G20-(G21))*100/G20 ->  | K32: Facteur correction: | L32: =100-M32 ->  | M32: =(L20-(L21))*100/L20 ->  | P32: Facteur correction: | Q32: =100-R32 ->  | R32: =(Q20-(Q21))*100/Q20 -> 
E33: Composition 1 | J33: Composition 1 | O33: Composition 1
E34: Formule | G34: =VLOOKUP(G14,Tableau1[#All],2,FALSE) ->  | J34: Formule | L34: =VLOOKUP(L14,Tableau38[#All],2,FALSE) ->  | O34: Formule | Q34: =VLOOKUP(Q14,Tableau1[#All],2,FALSE) -> 
E35: Masse molaire | G35: =IF(ISTEXT(G14),VLOOKUP(G14,Tableau1[#All],3,FALSE),"1") -> 1 | H35: g/mol | J35: Masse molaire | L35: =IF(ISTEXT(L14),VLOOKUP(L14,Tableau38[#All],3,FALSE),"1") -> 1 | M35: g/mol | O35: Masse molaire | Q35: =IF(ISTEXT(Q14),VLOOKUP(Q14,Tableau1[#All],3,FALSE),"1") -> 1 | R35: g/mol
E36: Masse volumique | G36: =IF(ISTEXT(G14),IF(G10="Liquide",VLOOKUP(G14,Tableau1[#All],4,FALSE),VLOOKUP(G14,Tableau1[#All],5,FALSE)),"1") -> 1 | H36: g/cm³ | J36: Masse volumique | L36: =IF(ISTEXT(L14),IF(L10="Liquide",VLOOKUP(L14,Tableau38[#All],4,FALSE),VLOOKUP(L14,Tableau38[#All],5,FALSE)),"1") -> 1 | M36: g/cm³ | O36: Masse volumique | Q36: =IF(ISTEXT(Q14),IF(Q10="Liquide",VLOOKUP(Q14,Tableau1[#All],4,FALSE),VLOOKUP(Q14,Tableau1[#All],5,FALSE)),"1") -> 1 | R36: g/cm³
E37: Concentration | G37: =IF(ISNUMBER(G15),IF(G10="Solide",((G$11/(G$12))*(G15/100)*((G$32)/100)/G35),((G$11/G$12)*G36*(G15/100)*((G$32)/100)/G35)),0) -> 0 | H37: mol/L | J37: Concentration | L37: =IF(ISNUMBER(L15),IF(L10="Solide",((L$11/L$12)*(L15/100)*((L$32)/100)/L35),((L$11/L$12)*L36*(L15/100)*((L$32)/100)/L35)),0) -> 0 | M37: mol/L | O37: Concentration | Q37: =IF(ISNUMBER(Q15),IF(Q10="Solide",((Q$11/(Q$12))*(Q15/100)*((Q$32)/100)/Q35),((Q$11/Q$12)*Q36*(Q15/100)*((Q$32)/100)/Q35)),0) -> 0 | R37: mol/L
E38: N. moles | G38: =IF(ISNUMBER(G15),IF(G$10="Solide",((G$11*(G15/100)*(G$32/100)/G35)*VLOOKUP(G14,Tableau2[#All],2,FALSE)),((G$11*G36*(G15/100)*(G$32/100)/G35))*VLOOKUP(G14,Tableau2[#All],2,FALSE)),0) -> 0 | H38: =IF(ISNUMBER(G15),IF(G$10="Solide",((G$11*(G15/100)/G35)*VLOOKUP(G14,Tableau2[#All],2,FALSE)),((G$11*G36*(G15/100)/G35))*VLOOKUP(G14,Tableau2[#All],2,FALSE)),0) -> 0 | J38: N. moles | L38: =IF(ISNUMBER(L15),IF(L$10="Solide",((L$11*(L15/100)*(L$32/100)/L35)*VLOOKUP(L14,Tableau2[#All],2,FALSE)),((L$11*L36*(L15/100)*(L$32/100)/L35))*VLOOKUP(L14,Tableau2[#All],2,FALSE)),0) -> 0 | M38: =IF(ISNUMBER(L15),IF(L$10="Solide",((L$11*(L15/100)/L35)*VLOOKUP(L14,Tableau2[#All],2,FALSE)),((L$11*L36*(L15/100)/L35))*VLOOKUP(L14,Tableau2[#All],2,FALSE)),0) -> 0 | O38: N. moles | Q38: =IF(ISNUMBER(Q15),IF(Q$10="Solide",((Q$11*(Q15/100)*(Q$32/100)/Q35)*VLOOKUP(Q14,Tableau2[#All],2,FALSE)),((Q$11*Q36*(Q15/100)*(Q$32/100)/Q35)*VLOOKUP(Q14,Tableau2[#All],2,FALSE))),0) -> 0 | R38: =IF(ISNUMBER(Q15),IF(Q$10="Solide",((Q$11*(Q15/100)/Q35)*VLOOKUP(Q14,Tableau2[#All],2,FALSE)),((Q$11*Q36*(Q15/100)/Q35)*VLOOKUP(Q14,Tableau2[#All],2,FALSE))),0) -> 0
E39: Composition 2 | J39: Composition 2 | O39: Composition 2
E40: Formule | G40: =VLOOKUP(G17,Tableau1[#All],2,FALSE) ->  | J40: Formule | L40: =VLOOKUP(L17,Tableau38[#All],2,FALSE) ->  | O40: Formule | Q40: =VLOOKUP(Q17,Tableau1[#All],2,FALSE) -> 
E41: Masse molaire | G41: =IF(ISTEXT(G17),VLOOKUP(G17,Tableau1[#All],3,FALSE),"1") -> 1 | H41: g/mol | J41: Masse molaire | L41: =IF(ISTEXT(L17),VLOOKUP(L17,Tableau38[#All],3,FALSE),"1") -> 1 | M41: g/mol | O41: Masse molaire | Q41: =IF(ISTEXT(Q17),VLOOKUP(Q17,Tableau1[#All],3,FALSE),"1") -> 1 | R41: g/mol
E42: Masse volumique | G42: =IF(ISTEXT(G17),IF(G10="Liquide",VLOOKUP(G17,Tableau1[#All],4,FALSE),VLOOKUP(G17,Tableau1[#All],5,FALSE)),"1") -> 1 | H42: g/cm³ | J42: Masse volumique | L42: =IF(ISTEXT(L17),IF(L10="Liquide",VLOOKUP(L17,Tableau38[#All],4,FALSE),VLOOKUP(L17,Tableau38[#All],5,FALSE)),"1") -> 1 | M42: g/cm³ | O42: Masse volumique | Q42: =IF(ISTEXT(Q17),IF(Q10="Liquide",VLOOKUP(Q17,Tableau1[#All],4,FALSE),VLOOKUP(Q17,Tableau1[#All],5,FALSE)),"1") -> 1 | R42: g/cm³
E43: Concentration | G43: =IF(ISNUMBER(G18),IF(G$10="Solide",((G$11/G$12)*(G18/100)*((G$32)/100)/G41),((G$11/G$12)*G42*(G18/100)*((G$32)/100)/G41)),0) -> 0 | H43: mol/L | J43: Concentration | L43: =IF(ISNUMBER(L18),IF(L$10="Solide",((L$11/L$12)*(L18/100)*((L$32)/100)/L41),((L$11/L$12)*L42*(L18/100)*((L$32)/100)/L41)),0) -> 0 | M43: mol/L | O43: Concentration | Q43: =IF(ISNUMBER(Q18),IF(Q$10="Solide",((Q$11/Q$12)*(Q18/100)*((Q$32)/100)/Q41),((Q$11/Q$12)*Q42*(Q18/100)*((Q$32)/100)/Q41)),0) -> 0 | R43: mol/L
E44: N. moles | G44: =IF(ISNUMBER(G18),IF(G$10="Solide",((G$11*(G18/100)*(G$32/100)/G41)*VLOOKUP(G17,Tableau2[#All],2,FALSE)),((G$11*G42*(G18/100)*(G$32/100)/G41)*VLOOKUP(G17,Tableau2[#All],2,FALSE))),0) -> 0 | H44: =IF(ISNUMBER(G18),IF(G$10="Solide",((G$11*(G18/100)/G41)*VLOOKUP(G17,Tableau2[#All],2,FALSE)),((G$11*G42*(G18/100)/G41)*VLOOKUP(G17,Tableau2[#All],2,FALSE))),0) -> 0 | J44: N. moles | L44: =IF(ISNUMBER(L18),IF(L$10="Solide",((L$11*(L18/100)*(L$32/100)/L41)*VLOOKUP(L17,Tableau2[#All],2,FALSE)),((L$11*L42*(L18/100)*(L$32/100)/L41)*VLOOKUP(L17,Tableau2[#All],2,FALSE))),0) -> 0 | M44: =IF(ISNUMBER(L18),IF(L$10="Solide",((L$11*(L18/100)/L41)*VLOOKUP(L17,Tableau2[#All],2,FALSE)),((L$11*L42*(L18/100)/L41)*VLOOKUP(L17,Tableau2[#All],2,FALSE))),0) -> 0 | O44: N. moles | Q44: =IF(ISNUMBER(Q18),IF(Q$10="Solide",((Q$11*(Q18/100)*(Q$32/100)/Q41)*VLOOKUP(Q17,Tableau2[#All],2,FALSE)),((Q$11*Q42*(Q18/100)*(Q$32/100)/Q41)*VLOOKUP(Q17,Tableau2[#All],2,FALSE))),0) -> 0 | R44: =IF(ISNUMBER(Q18),IF(Q$10="Solide",((Q$11*(Q18/100)/Q41)*VLOOKUP(Q17,Tableau2[#All],2,FALSE)),((Q$11*Q42*(Q18/100)/Q41)*VLOOKUP(Q17,Tableau2[#All],2,FALSE))),0) -> 0
E45: Composition 3 | G45: Solution | J45: Composition 3 | L45: Solution | O45: Composition 3 | Q45: Solution
E46: Porcentage: | J46: Porcentage: | O46: Porcentage:
E47: Formule | G47: =VLOOKUP(G45,Tableau1[#All],2,FALSE) ->  | J47: Formule | L47: =VLOOKUP(L45,Tableau38[#All],2,FALSE) ->  | O47: Formule | Q47: =VLOOKUP(Q45,Tableau1[#All],2,FALSE) -> 
E48: Masse molaire | G48: =VLOOKUP(G45,Tableau1[#All],3,FALSE) ->  | H48: g/mol | J48: Masse molaire | L48: =VLOOKUP(L45,Tableau38[#All],3,FALSE) ->  | M48: g/mol | O48: Masse molaire | Q48: =VLOOKUP(Q45,Tableau1[#All],3,FALSE) ->  | R48: g/mol
E49: Masse volumique | G49: =VLOOKUP(G45,Tableau1[#All],4,FALSE) ->  | H49: g/cm³ | J49: Masse volumique | L49: =VLOOKUP(L45,Tableau38[#All],4,FALSE) ->  | M49: g/cm³ | O49: Masse volumique | Q49: =VLOOKUP(Q45,Tableau1[#All],4,FALSE) ->  | R49: g/cm³
E50: Concentration | G50: =IF(G$10="Solide",((G$11/G$12)*(G46/100)*((G$32)/100)/G48),((G$11/G$12)*G49*(G46/100)*((G$32)/100)/G48)) ->  | H50: mol/L | J50: Concentration | L50: =IF(L$10="Solide",((L$11/L$12)*(L46/100)*((L$32)/100)/L48),((L$11/L$12)*L49*(L46/100)*((L$32)/100)/L48)) ->  | M50: mol/L | O50: Concentration | Q50: =IF(Q$10="Solide",((Q$11/Q$12)*(Q46/100)*((Q$32)/100)/Q48),((Q$11/Q$12)*Q49*(Q46/100)*((Q$32)/100)/Q48)) ->  | R50: mol/L
E51: N. moles | G51: =IF(G$10="Solide",((G$11*(G46/100)*(G$32/100)/G48)*VLOOKUP(G45,Tableau2[#All],2,FALSE)),((G$11*G49*(G46/100)*(G$32/100)/G48))*VLOOKUP(G45,Tableau2[#All],2,FALSE)) ->  | H51: mols | J51: N. moles | L51: =IF(L$10="Solide",((L$11*(L46/100)*(L$32/100)/L48)*VLOOKUP(L45,Tableau2[#All],2,FALSE)),((L$11*L49*(L46/100)*(L$32/100)/L48)*VLOOKUP(L45,Tableau2[#All],2,FALSE))) ->  | M51: mols | O51: N. moles | Q51: =IF(Q$10="Solide",((Q$11*(Q46/100)*(Q$32/100)/Q48)*VLOOKUP(Q45,Tableau2[#All],2,FALSE)),((Q$11*Q49*(Q46/100)*(Q$32/100)/Q48)*VLOOKUP(Q45,Tableau2[#All],2,FALSE))) ->  | R51: mols
E52: Composition 4 | G52: Solution | J52: Composition 4 | L52: Solution | O52: Composition 4 | Q52: Solution
E53: Porcentage: | J53: Porcentage: | O53: Porcentage:
E54: Formule | G54: =VLOOKUP(G52,Tableau1[#All],2,FALSE) ->  | J54: Formule | L54: =VLOOKUP(L52,Tableau38[#All],2,FALSE) ->  | O54: Formule | Q54: =VLOOKUP(Q52,Tableau1[#All],2,FALSE) -> 
E55: Masse molaire | G55: =VLOOKUP(G52,Tableau1[#All],3,FALSE) ->  | H55: g/mol | J55: Masse molaire | L55: =VLOOKUP(L52,Tableau38[#All],3,FALSE) ->  | M55: g/mol | O55: Masse molaire | Q55: =VLOOKUP(Q52,Tableau1[#All],3,FALSE) ->  | R55: g/mol
E56: Masse volumique | G56: =VLOOKUP(G52,Tableau1[#All],4,FALSE) ->  | H56: g/cm³ | J56: Masse volumique | L56: =VLOOKUP(L52,Tableau38[#All],4,FALSE) ->  | M56: g/cm³ | O56: Masse volumique | Q56: =VLOOKUP(Q52,Tableau1[#All],4,FALSE) ->  | R56: g/cm³
E57: Concentration | G57: =IF(G$10="Solide",((G$11/G$12)*(G53/100)*((G$32)/100)/G55),((G$11/G$12)*G56*(G53/100)*((G$32)/100)/G55)) ->  | H57: mol/L | J57: Concentration | L57: =IF(L$10="Solide",((L$11/L$12)*(L53/100)*((L$32)/100)/L55),((L$11/L$12)*L56*(L53/100)*((L$32)/100)/L55)) ->  | M57: mol/L | O57: Concentration | Q57: =IF(Q$10="Solide",((Q$11/Q$12)*(Q53/100)*((Q$32)/100)/Q55),((Q$11/Q$12)*Q56*(Q53/100)*((Q$32)/100)/Q55)) ->  | R57: mol/L
E58: N. moles | G58: =IF(G$10="Solide",((G$11*(G53/100)*(G$32/100)/G55)*VLOOKUP(G52,Tableau2[#All],2,FALSE)),((G$11*G56*(G53/100)*(G$32/100)/G55)*VLOOKUP(G52,Tableau2[#All],2,FALSE))) ->  | H58: mols | J58: N. moles | L58: =IF(L$10="Solide",((L$11*(L53/100)*(L$32/100)/L55)*VLOOKUP(L52,Tableau2[#All],2,FALSE)),((L$11*L56*(L53/100)*(L$32/100)/L55)*VLOOKUP(L52,Tableau2[#All],2,FALSE))) ->  | M58: mols | O58: N. moles | Q58: =IF(Q$10="Solide",((Q$11*(Q53/100)*(Q$32/100)/Q55)*VLOOKUP(Q52,Tableau2[#All],2,FALSE)),((Q$11*Q56*(Q53/100)*(Q$32/100)/Q55)*VLOOKUP(Q52,Tableau2[#All],2,FALSE))) ->  | R58: mols
G99: Neutralisant

Sheet Feuil3 (hidden)
A2: Tableau 1. Données savon pour le lavage basique | G2: Tableau 3. Données du produit neutralisant | M2: Tableau 4. Valeur N pour le calcul de neutralisation acide et basique
A3: Composant | B3: Formule | C3: mm | D3: d_aqueuse | E3: d_sol | G3: Composant | H3: Formule | I3: mm | J3: d | K3: d_solide | M3: Composition | N3: Acide citrique | O3: Bicarbonate de sodium | P3: Hydroxyde de sodium
G4: Solution | H4: 0 | I4: 0 | J4: 0 | M4: Solution | N4: 1 | O4: 1 | P4: 1
A5: Hydroxyde de sodium | B5: NaOH | C5: 39.997 | D5: 1.52 | E5: 2.13 | G5: Acide chlorhydrique | H5: HCl | I5: 36.458 | J5: 1.19 | M5: Hydroxyde de sodium | N5: =3/1 -> 3 | O5: =1/1 -> 1
A6: Hydroxyde de potassium | B6: KOH | C6: 56.105 | D6: 1.3881 | E6: 2.044 | G6: Acide sulfurique | H6: H2SO4 | I6: 98.078 | J6: 1.83 | M6: Hydroxyde de calcium | N6: =3/2 -> 1.5 | O6: 3
G7: Acide acétique | H7: CH3COOH | I7: 60.052 | J7: 1.0492 | M7: Acide citrique | O7: =1/3 -> 0.3333333333 | P7: =1/3 -> 0.3333333333
G8: Acide citrique | H8: H3C6H5O7 | I8: 192.124 | J8: 1.24 | K8: 1.66 | L8: 50 | M8: Acide peracétique | O8: 1 | P8: 1
G9: Acide peracétique | H9: CH3COOOH | I9: 76.0514 | J9: 1.23 | M9: Acide acétique | O9: 1 | P9: 1
G10: Bicarbonate de sodium | H10: NaHCO3 | I10: 84.006 | J10: 2.22 | K10: 2.22 | M10: Acide chlorhydrique | O10: 1 | P10: 1
G11: Hydroxyde de calcium | H11: Ca(OH)2 | I11: 74.093 | J11: 2.24 | K11: 2.24 | M11: Acide sulfurique | O11: =1/2 -> 0.5 | P11: =1/2 -> 0.5
G12: Hydroxyde de sodium | H12: NaOH | I12: 39.997 | J12: 1.52 | K12: 2.13 | L12: 50 | M12: Hydroxyde de potassium | N12: 3 | O12: 1
G17: Tableau 2 | M17: Tableau 6
A18: Tableau 38. Données savon pour lavage acide | G18: Valeur N pour le calcul de mol dans le lavage cumulé | M18: Valeur N pour le calcul de neutralisation cumulé
A19: Composant | B19: Formule | C19: mm | D19: d_aqueuse | E19: d_sol | G19: Composant | H19: N | L19: u | M19: Composant | N19: Acide citrique | O19: Bicarbonate de sodium pou sol basique | P19: Hydroyde de sodium | Q19: Bicarbonate de sodium2 pour sol acide
A20: Acide acétique | B20: CH3COOH | C20: 60.052 | D20: 1.0492 | G20: Solution | H20: 0 | M20: Hydroxyde de sodium | N20: 3 | O20: 1 | Q20: 1
A21: Acide chlorhydrique | B21: HCl | C21: 36.458 | D21: 1.19 | G21: Hydroxyde de sodium | H21: 1 | M21: Hydroxyde de calcium | N21: 3
A22: Acide citrique | B22: H3C6H5O7 | C22: 192.124 | D22: 1.24 | E22: 1.66 | G22: Hydroxyde de calcium | H22: 2 | M22: Acide chlorhydrique | P22: 1 | Q22: 1
A23: Acide peracétique | B23: CH3COOOH | C23: 76.0514 | D23: 1.23 | G23: Acide chlorhydrique | H23: 1 | M23: Acide sulfurique | P23: 1 | Q23: 1
A24: Acide sulfurique | B24: H2SO4 | C24: 98.078 | D24: 1.83 | G24: Acide sulfurique | H24: 2 | M24: Acide acétique | O24: 1 | P24: 1 | Q24: 1
G25: Acide acétique | H25: 1 | M25: Acide paracétique | P25: 1 | Q25: 1
G26: Acide paracétique | H26: 1 | M26: Hydroxyde de potassium | N26: 3 | O26: 1
G27: Bicarbonate de sodium | H27: 1 | M27: Acide citrique | P27: 1 | Q27: 1
G28: Acide citrique | H28: 3
G29: Hydroxyde de potassium | H29: 1
A39: 1
A40: t= 1/2
A41: t= 3/4
A42: t= 1/4
A43: 2

Sheet Lavage Basique (LABO) (hidden)
C3: Lavage au Savon Basique | M3: Neutralisant
D5: Type de savon : | E5: Solide | G5: Volume de solution : | I5: 0.1 | J5: L | N5: Type : | O5: Solide
S6: Fn
C7: Dilution | H7: PP test | N7: Produit : | O7: Acide citrique | R7: Composition 1 | S7: =IF(O$7="Acide citrique",VLOOKUP(E12,Tableau4[#All],2,FALSE),VLOOKUP(E12,Tableau4[#All],3,FALSE)) -> 3
D8: Produit : | E8: 2100 | F8: =IF(E5="solide","g de produit", "ml de produit") -> g de produit | H8: Facteur correction | I8: 20 | N8: Porcentage: | O8: 99.5 | R8: Composition 2 | S8: =IF(O$7="Acide citrique",VLOOKUP(I12,Tableau4[#All],2,FALSE),VLOOKUP(I12,Tableau4[#All],3,FALSE)) -> 1
D9: Filtrat: | E9: 132.489 | F9: L | N9: Formule | O9: =VLOOKUP(O7,Tableau3[#All],2,FALSE) -> H3C6H5O7 | R9: Composition 3 | S9: =IF(O$7="Acide citrique",VLOOKUP(E19,Tableau4[#All],2,FALSE),VLOOKUP(E19,Tableau4[#All],3,FALSE)) -> 1
N10: Masse molaire | O10: =VLOOKUP(O7,Tableau3[#All],3,FALSE) -> 192.124 | P10: g/mol | R10: Composition 4 | S10: =IF(O$7="Acide citrique",VLOOKUP(I19,Tableau4[#All],2,FALSE),VLOOKUP(I19,Tableau4[#All],3,FALSE)) -> 1
N11: Masse volumique | O11: =VLOOKUP(O7,Tableau3[#All],4,FALSE) -> 1.24 | P11: g/cm³
C12: Composition 1 | E12: Hydroxyde de sodium | H12: Composition 2 | I12: Solution
C13: Porcentage: | E13: 15 | H13: Porcentage: | I13: 0
C14: Formule | E14: =VLOOKUP(E12,Tableau1[#All],2,FALSE) -> NaOH | H14: Formule | I14: =VLOOKUP(I12,Tableau1[#All],2,FALSE) ->  | M14: Quantité de produit necessaire : | P14: =IF(O5="solide",(((E17/S7)+(I17*S8)+(E24/S9)+(I24/S10))*O10*(100/O8)),(((E17/S7)+(I17/S8)+(E24/S9)+(I24/S10))*(O10/O11)*(100/O8))) ->  | Q14: =IF(O5="solide","g de", "ml de") -> g de | R14: =O7 -> Acide citrique | S14: (LABO)
C15: Masse molaire | E15: =VLOOKUP(E12,Tableau1[#All],3,FALSE) -> 39.997 | F15: g/mol | H15: Masse molaire | I15: =VLOOKUP(I12,Tableau1[#All],3,FALSE) ->  | J15: g/mol
C16: Masse volumique | E16: =VLOOKUP(E12,Tableau1[#All],4,FALSE) -> 1.52 | F16: g/cm³ | H16: Masse volumique | I16: =VLOOKUP(I12,Tableau1[#All],4,FALSE) ->  | J16: g/cm³
C17: Moles | E17: =IF(E5="Solide",(E8*(E13/100)*(I8/100)/E15),(E8*E16*(E13/100)*(I8/100)/E15)) -> 1.575118134 | F17: mol | H17: Concentration | I17: =IF(E$5="Solide",((E$8/E$9)*(I13/100)*((I$8)/100)/I15),((E$8/E$9)*I16*(I13/100)*((I$8)/100)/I15)) ->  | J17: mol/L
C19: Composition 3 | E19: Solution | H19: Composition 4 | I19: Solution
C20: Porcentage: | H20: Porcentage:
C21: Formule | E21: =VLOOKUP(E19,Tableau1[#All],2,FALSE) ->  | H21: Formule | I21: =VLOOKUP(I19,Tableau1[#All],2,FALSE) -> 
C22: Masse molaire | E22: =VLOOKUP(E19,Tableau1[#All],3,FALSE) ->  | F22: g/mol | H22: Masse molaire | I22: =VLOOKUP(I19,Tableau1[#All],3,FALSE) ->  | J22: g/mol
C23: Masse volumique | E23: =VLOOKUP(E19,Tableau1[#All],4,FALSE) ->  | F23: g/cm³ | H23: Masse volumique | I23: =VLOOKUP(I19,Tableau1[#All],4,FALSE) ->  | J23: g/cm³
C24: Concentration | E24: =IF(E$5="Solide",((E$8/E$9)*(E20/100)*((I$8)/100)/E22),((E$8/E$9)*E23*(E20/100)*((I$8)/100)/E22)) ->  | F24: mol/L | H24: Concentration | I24: =IF(E$5="Solide",((E$8/E$9)*(I20/100)*((I$8)/100)/I22),((E$8/E$9)*I23*(I20/100)*((I$8)/100)/I22)) ->  | J24: mol/L
N28: =E8/E9 -> 15.85037248
N29: =N28/2 -> 7.925186242

Sheet Lavage acide - CARL (hidden)
C3: Lavage acide | I3: Neutralisant
D5: Type de produit : | E5: Solide | J5: Type : | K5: Solide
O6: Fn
C7: Dilution | J7: Produit : | K7: Bicarbonate de sodium | N7: Composition 1 | O7: =IF(K$7="Hydroxyde de sodium", VLOOKUP(E19,Tableau4[#All],4,FALSE),VLOOKUP(E19,Tableau4[#All],3,FALSE)) -> 0.3333333333 | T7: =E8*40/E9 -> 90.25009061
D8: Produit : | E8: 622.5 | F8: =IF(E5="solide","g de produit", "ml de produit") -> g de produit | J8: Porcentage: | K8: 99.5 | U8: ch bi | V8: =(3.14/4*(11.125*0.0254)^2)*(10.4*0.0254)*1000 -> 16.5578592 | W8: l
D9: Filtrat: | E9: 275.9 | F9: L | J9: Formule | K9: =VLOOKUP(K7,Tableau3[#All],2,FALSE) -> NaHCO3
J10: Masse molaire | K10: =VLOOKUP(K7,Tableau3[#All],3,FALSE) -> 84.006 | L10: mol/L | U10: ch naoh | V10: =(3.14/4*(11.125*0.0254)^2)*(6.4*0.0254)*1000 -> 10.18945181 | W10: l
J11: Masse volumique | K11: =VLOOKUP(K7,Tableau3[#All],4,FALSE) -> 2.22 | L11: g/cm³ | T11: =73*3.78 -> 275.94
C12: Volume de solution : | E12: 16.55 | F12: L | S12: =16.55*E8/E9 -> 37.34097499
D14: PP test | I14: Quantité de produit necessaire : | L14: =IF(K5="solide",((E24*E12/O7)*K10*(100/K8)),((E24*E12/O7)*(K10/K11)*(100/K8))) -> 29.24145364 | M14: =IF(K5="solide","g de", "ml de") -> g de | N14: =K7 -> Bicarbonate de sodium
D15: Facteur correction | E15: 60
T16: =631-561 -> 70
C19: Composition 1 | E19: Acide citrique
C20: Porcentage: | E20: 99
C21: Formule | E21: =VLOOKUP(E19,Feuil3!G3:J15,2,FALSE) -> H3C6H5O7
C22: Masse molaire | E22: =VLOOKUP(E19,Tableau3[#All],3,FALSE) -> 192.124 | F22: g/mol
C23: Masse volumique | E23: =VLOOKUP(E19,Tableau3[#All],4,FALSE) -> 1.24 | F23: g/cm³
C24: Concentration | E24: =IF(E5="Solide",((E$8/E$9)*(E20/100)*((E$15)/100)/E22),((E$8/E$9)*E23*(E20/100)*((E$15)/100)/E22)) -> 0.006975775258 | F24: mol/L

Sheet Lavage acide -CARL (hidden)
C3: Lavage acide | I3: Neutralisant
D5: Type de produit : | E5: Solide | J5: Type : | K5: Solide
O6: Fn
C7: Dilution | J7: Produit : | K7: Bicarbonate de sodium | N7: Composition 1 | O7: =IF(K$7="Hydroxyde de sodium", VLOOKUP(E19,Tableau4[#All],4,FALSE),VLOOKUP(E19,Tableau4[#All],3,FALSE)) -> 0.3333333333 | T7: =E8*40/E9 -> 187.9401309
D8: Produit : | E8: 622.5 | F8: =IF(E5="solide","g de produit", "ml de produit") -> g de produit | J8: Porcentage: | K8: 99.5 | U8: ch bi | V8: =(3.14/4*(11.125*0.0254)^2)*(10.4*0.0254)*1000 -> 16.5578592 | W8: l
D9: Filtrat: | E9: 132.489 | F9: L | J9: Formule | K9: =VLOOKUP(K7,Tableau3[#All],2,FALSE) -> NaHCO3
J10: Masse molaire | K10: =VLOOKUP(K7,Tableau3[#All],3,FALSE) -> 84.006 | L10: mol/L | U10: ch naoh | V10: =(3.14/4*(11.125*0.0254)^2)*(6.4*0.0254)*1000 -> 10.18945181 | W10: l
J11: Masse volumique | K11: =VLOOKUP(K7,Tableau3[#All],4,FALSE) -> 2.22 | L11: g/cm³ | T11: =73*3.78 -> 275.94
C12: Volume de solution : | E12: 16.55 | F12: L | S12: =16.55*E8/E9 -> 77.76022915
D14: PP test | I14: Quantité de produit necessaire : | L14: =IF(K5="solide",((E24*E12/O7)*K10*(100/K8)),((E24*E12/O7)*(K10/K11)*(100/K8))) -> 30.44674297 | M14: =IF(K5="solide","g de", "ml de") -> g de | N14: =K7 -> Bicarbonate de sodium
D15: Facteur correction | E15: 30
T16: =631-561 -> 70
C19: Composition 1 | E19: Acide citrique
C20: Porcentage: | E20: 99
C21: Formule | E21: =VLOOKUP(E19,Feuil3!G3:J15,2,FALSE) -> H3C6H5O7
C22: Masse molaire | E22: =VLOOKUP(E19,Tableau3[#All],3,FALSE) -> 192.124 | F22: g/mol
C23: Masse volumique | E23: =VLOOKUP(E19,Tableau3[#All],4,FALSE) -> 1.24 | F23: g/cm³
C24: Concentration | E24: =IF(E5="Solide",((E$8/E$9)*(E20/100)*((E$15)/100)/E22),((E$8/E$9)*E23*(E20/100)*((E$15)/100)/E22)) -> 0.007263306363 | F24: mol/L
